bitfinex-derivatives/quotes_SOLF0:USTF0_20250318
["timestamp","ask_amount","ask_price","bid_price","bid_amount"]
[1742307046127,34.66321707,122.56,122.52,269.42]
[1742307046337,8.1616,122.54,122.52,269.42]
[1742307046528,34.66321707,122.56,122.52,269.42]
[1742307046832,8.1619,122.53,122.52,269.42]
[1742307047239,34.60465684,122.54,122.51,0.05966404]
[1742307047432,34.60465684,122.54,122.48,269.38]
[1742307047742,34.6596425,122.54,122.51,0.05690966]
[1742307047931,36.7334425,122.54,122.51,0.05690966]
[1742307048332,8.1625,122.52,122.51,0.05690966]
[1742307048542,42.76715684,122.52,122.51,9.66e-06]
[1742307048936,8.1625,122.52,122.51,9.66e-06]
[1742307049538,8.1645,122.49,122.48,269.38]
[1742307050137,21.60930768,122.5,122.48,269.38]
[1742307050539,21.666775,122.5,122.48,269.43861689]
[1742307050737,8.1645,122.49,122.48,269.43861689]
[1742307051037,418.46930768,122.64,122.48,324.90792457]
[1742307051235,418.46930768,122.64,122.49,2.0745]
[1742307051236,6.3016,122.59,122.49,2.0745]
[1742307051541,29.76820768,122.58,122.51,8.1629]
[1742307051733,29.76820768,122.58,122.52,33.86]
[1742307052042,0.05923519,122.56,122.54,0.06253305]
[1742307054340,34.59138669,122.56,122.49,35.9345]
[1742307054535,34.59138669,122.56,122.49,33.86]
[1742307055137,42.75148669,122.56,122.5,8.1635]
[1742307055341,34.59138669,122.56,122.49,33.86]
[1742307055540,0.05923519,122.56,122.52,0.05620474]
[1742307056143,0.05923519,122.56,122.52,8.21820474]
[1742307056840,0.05923519,122.56,122.52,0.05620474]
[1742307057042,34.59138669,122.56,122.52,0.05620474]
[1742307057235,0.05923519,122.56,122.52,0.05620474]
[1742307057435,0.05923519,122.56,122.52,8.21840474]
[1742307058536,0.05923519,122.56,122.53,8.1618]
[1742307058749,0.05923519,122.56,122.52,0.05620474]
[1742307058936,8.21913519,122.56,122.52,8.21840474]
[1742307059131,0.05923519,122.56,122.52,8.21840474]
[1742307059342,0.05923519,122.56,122.53,8.1614]
[1742307060131,0.05923519,122.56,122.54,8.1611]
[1742307060635,0.05923519,122.56,122.53,8.1615]
[1742307060944,0.05923519,122.56,122.52,0.05620474]
[1742307061141,0.05923519,122.56,122.55,8.1605]
[1742307061841,0.05923519,122.56,122.54,8.1608]
[1742307062143,0.05923519,122.56,122.52,0.05620474]
[1742307062944,0.05923519,122.56,122.53,8.1615]
[1742307063247,0.05923519,122.56,122.52,0.05620474]
[1742307063648,0.05923519,122.56,122.53,8.1615]
[1742307063943,0.05923519,122.56,122.52,0.05620474]
[1742307064143,68.43138669,122.56,122.52,0.05620474]
[1742307064646,8.1615,122.54,122.52,0.05620474]
[1742307064950,68.43138669,122.56,122.52,0.05620474]
[1742307065246,8.1608,122.55,122.52,0.05620474]
[1742307065450,33.89923519,122.56,122.52,0.05620474]
[1742307065745,8.1608,122.55,122.52,0.05620474]
[1742307065940,33.89923519,122.56,122.52,0.05620474]
[1742307066342,8.1613,122.54,122.52,0.05620474]
[1742307067042,8.1619,122.53,122.52,0.05620474]
[1742307067439,42.0019,122.53,122.52,4.74e-06]
[1742307067643,8.1645,122.49,122.48,269.38]
[1742307068141,34.5321515,122.52,122.48,269.38]
[1742307068750,8.1645,122.49,122.48,269.38]
[1742307068941,68.3721515,122.5,122.43,273.5809]
[1742307069142,70.4991515,122.5,122.43,269.38]
[1742307070148,0.0544466,122.48,122.43,269.38]
[1742307070550,8.1663,122.47,122.43,269.38]
[1742307070952,0.0544466,122.48,122.43,269.38]
[1742307072247,8.2200466,122.48,122.45,8.1669]
[1742307072447,0.0544466,122.48,122.43,269.38]
[1742307072744,8.2196466,122.48,122.46,8.1665]
[1742307072952,0.0544466,122.48,122.43,269.38]
[1742307073251,0.0544466,122.48,122.46,8.1662]
[1742307073845,0.0544466,122.48,122.47,8.1659]
[1742307074047,0.0544466,122.48,122.45,33.84]
[1742307074940,0.0544466,122.48,122.47,8.1659]
[1742307075141,430.25235883,122.55,122.45,33.84]
[1742307075349,8.1642,122.5,122.46,2.1385]
[1742307075650,34.5321515,122.54,122.46,2.1385]
[1742307075855,36.5264515,122.54,122.46,2.1385]
[1742307076149,8.1655,122.48,122.46,10.3049]
[1742307076345,0.05853811,122.51,122.49,0.0544466]
[1742307076651,8.1659,122.47,122.45,33.84]
[1742307076953,2.1089,122.51,122.45,33.8944466]
[1742307077141,8.22745169,122.47,122.45,0.0544466]
[1742307077548,0.06095169,122.47,122.45,0.0544466]
[1742307078056,8.1665,122.46,122.45,0.0544466]
[1742307079546,8.22715169,122.47,122.45,0.0544466]
[1742307079752,0.06095169,122.47,122.45,0.0544466]
[1742307080458,0.06095169,122.47,122.45,33.8944466]
[1742307081152,21.61330588,122.53,122.45,33.8944466]
[1742307081359,21.61330588,122.53,122.46,2.1128]
[1742307081859,33.84,122.54,122.46,2.1128]
[1742307082456,0.05858043,122.51,122.49,0.0547974]
[1742307082756,0.05858043,122.51,122.49,33.8947974]
[1742307082963,0.05858043,122.51,122.5,8.1639]
[1742307084565,8.1603,122.56,122.54,8.1609]
[1742307084762,33.84,122.57,122.49,303.3547974]
[1742307084965,33.84,122.57,122.49,303.3]
[1742307085260,68.38825428,122.57,122.49,303.3]
[1742307085666,8.1623,122.53,122.49,303.3]
[1742307085965,8.1623,122.53,122.52,0.05991791]
[1742307092269,34.60952494,122.54,122.44,17.27412714]
[1742307092475,34.54825428,122.45,122.39,45.32132671]
[1742307092670,34.54825428,122.42,122.39,45.32132671]
[1742307092966,68.36825428,122.42,122.39,45.32132671]
[1742307093373,8.1705,122.4,122.39,45.32132671]
[1742307093573,8.1705,122.4,122.39,45.37585943]
[1742307093771,8.1699,122.41,122.39,45.37585943]
[1742307093973,0.05205512,122.42,122.39,45.37585943]
[1742307094475,0.05205512,122.42,122.39,79.19585943]
[1742307094676,0.05205512,122.42,122.4,269.48]
[1742307094881,8.22135512,122.42,122.4,269.48]
[1742307095080,0.05205512,122.42,122.4,269.48]
[1742307095376,34.6003094,122.42,122.4,269.48]
[1742307096081,34.6003094,122.42,122.39,45.37585943]
[1742307096673,34.6003094,122.42,122.39,0.05453272]
[1742307097279,8.1703,122.41,122.39,0.05453272]
[1742307097480,34.6003094,122.42,122.39,0.05453272]
[1742307097679,8.1702,122.41,122.39,0.05453272]
[1742307097882,34.6003094,122.42,122.39,0.05453272]
[1742307098478,8.1703,122.41,122.39,0.05453272]
[1742307098682,34.6003094,122.42,122.39,0.05453272]
[1742307099091,8.1699,122.41,122.39,0.05453272]
[1742307099272,34.6003094,122.42,122.39,0.05453272]
[1742307099883,8.1705,122.4,122.39,0.05453272]
[1742307100077,68.38825428,122.4,122.36,269.48]
[1742307100273,34.54825428,122.38,122.32,303.38]
[1742307100778,8.1726,122.37,122.32,311.5555]
[1742307100978,34.54825428,122.38,122.32,303.38]
[1742307101181,0.05301571,122.36,122.33,0.05657408]
[1742307101379,0.05301571,122.36,122.34,8.1742]
[1742307101580,0.05301571,122.36,122.33,2.12127408]
[1742307101781,8.1687,122.43,122.38,8.1713]
[1742307101979,8.1687,122.43,122.38,311.5913]
[1742307102287,42.71645428,122.44,122.38,303.42]
[1742307102988,0.06180723,122.42,122.4,0.05905309]
[1742307103179,0.06180723,122.42,122.41,33.84]
[1742307103582,36.57915428,122.48,122.41,33.84]
[1742307104286,34.54825428,122.48,122.41,33.84]
[1742307104787,0.05589225,122.46,122.44,8.1673]
[1742307105085,0.05589225,122.46,122.45,42.0072]
[1742307106487,0.05589225,122.46,122.45,33.84]
[1742307107085,0.05589225,122.46,122.45,42.0072]
[1742307109287,34.54825428,122.52,122.45,33.84]
[1742307109689,8.1636,122.51,122.48,8.1648]
[1742307109887,68.38825428,122.54,122.48,33.84]
[1742307110083,34.54825428,122.54,122.48,33.84]
[1742307110387,0.05785246,122.52,122.5,0.05741204]
[1742307110586,0.05785246,122.52,122.5,269.59741204]
[1742307110988,0.05785246,122.52,122.51,33.82]
[1742307111582,0.05785246,122.52,122.5,269.59741204]
[1742307112991,0.05785246,122.52,122.5,277.76091204]
[1742307113289,0.05785246,122.52,122.5,269.59741204]
[1742307114085,0.05785246,122.52,122.5,277.76081204]
[1742307114492,0.05785246,122.52,122.51,8.1632]
[1742307116188,0.05785246,122.52,122.5,279.79421204]
[1742307117288,8.22045246,122.52,122.5,271.63051204]
[1742307117591,0.05785246,122.52,122.5,271.63051204]
[1742307117993,0.05785246,122.52,122.5,279.79381204]
[1742307118586,0.05785246,122.52,122.51,8.1632]
[1742307118989,0.05785246,122.52,122.5,271.63051204]
[1742307119493,0.05785246,122.52,122.5,269.59741204]
[1742307120694,8.1632,122.51,122.5,269.59741204]
[1742307120895,0.05785246,122.52,122.5,269.59741204]
[1742307121189,0.05785246,122.52,122.51,8.1632]
[1742307122089,4.2209,122.6,122.55,8.1602]
[1742307122289,8.159,122.58,122.55,8.1602]
[1742307122589,34.54825428,122.59,122.53,33.8]
[1742307122986,34.54825428,122.57,122.51,41.9628]
[1742307123187,34.60090024,122.57,122.55,0.05348168]
[1742307123592,8.1599,122.56,122.55,0.05348168]
[1742307126494,8.1624,122.53,122.51,33.8]
[1742307126898,33.8,122.54,122.5,269.54]
[1742307127093,34.54825428,122.53,122.5,269.54]
[1742307127490,8.1632,122.51,122.5,269.59316608]
[1742307127887,8.1632,122.51,122.5,0.05316608]
[1742307128296,42.71145428,122.51,122.5,6.608e-05]
[1742307128494,8.1659,122.47,122.46,269.4]
[1742307129993,8.22524732,122.48,122.46,269.4]
[1742307130188,0.05974732,122.48,122.46,269.4]
[1742307130598,8.1659,122.47,122.46,269.4]
[1742307132896,34.54825428,122.47,122.45,0.05399583]
[1742307133506,33.85974732,122.48,122.45,0.05399583]
[1742307133902,0.05974732,122.48,122.45,33.85399583]
[1742307134598,0.05974732,122.48,122.47,8.1659]
[1742307134796,38.74775428,122.55,122.45,33.85399583]
[1742307134998,8.1622,122.53,122.5,8.1635]
[1742307135198,4.1995,122.55,122.5,41.9635]
[1742307135505,8.1616,122.54,122.52,8.1624]
[1742307135704,2.0748,122.55,122.52,8.1624]
[1742307136096,8.22006893,122.55,122.52,8.22235448]
[1742307136603,0.05916893,122.55,122.52,0.05995448]
[1742307136902,0.05916893,122.55,122.53,33.8]
[1742307137099,0.05916893,122.55,122.54,8.1612]
[1742307138106,72.58155428,122.62,122.57,8.1591]
[1742307138307,72.58155428,122.62,122.57,41.9591]
[1742307138500,72.58155428,122.62,122.57,33.8]
[1742307138902,8.1576,122.6,122.57,33.8]
[1742307139103,0.05629962,122.61,122.58,0.06032573]
[1742307139403,8.21309962,122.61,122.58,0.06032573]
[1742307139999,8.1572,122.6,122.58,0.06032573]
[1742307140207,0.05629962,122.61,122.58,0.06032573]
[1742307141707,8.21319962,122.61,122.58,8.21852573]
[1742307142607,8.1573,122.6,122.58,0.06032573]
[1742307142800,0.05629962,122.61,122.58,0.06032573]
[1742307143307,8.1579,122.59,122.58,0.06032573]
[1742307143608,0.05629962,122.61,122.58,0.06032573]
[1742307144610,8.1577,122.6,122.58,0.06032573]
[1742307145110,8.21299962,122.61,122.58,8.21882573]
[1742307145412,0.05629962,122.61,122.58,0.06032573]
[1742307145708,8.1579,122.59,122.58,0.06032573]
[1742307145905,0.05629962,122.61,122.58,0.06032573]
[1742307146606,0.05629962,122.61,122.59,33.78]
[1742307147009,36.69325428,122.66,122.59,33.78]
[1742307147010,8.1542,122.65,122.59,33.78]
[1742307147207,8.1542,122.65,122.59,35.955]
[1742307148011,8.1548,122.64,122.59,35.955]
[1742307148210,72.40855428,122.68,122.61,0.05374971]
[1742307148211,0.05754013,122.63,122.61,0.05374971]
[1742307148404,34.54825428,122.66,122.61,0.05374971]
[1742307148605,0.05191375,122.63,122.61,0.05374971]
[1742307149008,8.20751375,122.63,122.61,0.05374971]
[1742307149301,0.05191375,122.63,122.61,0.05374971]
[1742307149809,8.1559,122.62,122.61,0.05374971]
[1742307150808,8.20731375,122.63,122.61,0.05374971]
[1742307151309,8.1559,122.62,122.61,0.05374971]
[1742307151509,0.05191375,122.63,122.61,0.05374971]
[1742307151710,8.20761375,122.63,122.61,0.05374971]
[1742307152112,0.05191375,122.63,122.61,0.05374971]
[1742307152314,8.20741375,122.63,122.61,0.05374971]
[1742307152612,0.05191375,122.63,122.61,0.05374971]
[1742307153714,8.20751375,122.63,122.61,0.05374971]
[1742307153915,0.05191375,122.63,122.61,0.05374971]
[1742307154912,0.05191375,122.63,122.62,8.1559]
[1742307155320,8.1559,122.62,122.61,0.05374971]
[1742307158215,8.20741375,122.63,122.61,0.05374971]
[1742307158413,0.05191375,122.63,122.61,0.05374971]
[1742307158914,8.1559,122.62,122.61,0.05374971]
[1742307159114,0.05191375,122.63,122.56,269.44]
[1742307159317,0.05191375,122.63,122.57,33.74]
[1742307159318,8.1583,122.59,122.57,33.74]
[1742307159920,8.1585,122.58,122.57,33.74]
[1742307160116,34.54825428,122.62,122.57,33.74]
[1742307160420,0.05246148,122.61,122.58,0.05330921]
[1742307160617,0.05246148,122.61,122.59,33.74]
[1742307162221,0.05246148,122.61,122.59,41.8975]
[1742307162622,8.20916148,122.61,122.59,41.8975]
[1742307162822,0.05246148,122.61,122.59,33.74]
[1742307163021,0.05246148,122.61,122.58,0.05330921]
[1742307163221,8.1579,122.59,122.58,0.05330921]
[1742307165422,55.36366396,122.61,122.58,0.05330921]
[1742307166027,8.1579,122.59,122.58,0.05330921]
[1742307167532,8.1576,122.6,122.58,0.05330921]
[1742307167720,55.36366396,122.61,122.58,0.05330921]
[1742307168215,8.1579,122.59,122.58,0.05330921]
[1742307168420,21.57120248,122.59,122.52,271.3553]
[1742307168621,8.1602,122.56,122.52,271.3553]
[1742307168821,21.57120248,122.57,122.52,269.22]
[1742307169416,21.57120248,122.55,122.52,269.22]
[1742307169621,55.31120248,122.55,122.53,0.05300793]
[1742307169821,8.1612,122.54,122.53,0.05300793]
[1742307173831,41.9008,122.55,122.53,0.05300793]
[1742307174130,2.21613351,122.56,122.53,0.05300793]
[1742307175632,8.1609,122.55,122.53,0.05300793]
[1742307176034,2.21613351,122.56,122.53,0.05300793]
[1742307176931,0.05653351,122.56,122.53,33.79300793]
[1742307177330,8.21683351,122.56,122.53,41.95460793]
[1742307177834,0.05653351,122.56,122.53,0.05300793]
[1742307178032,8.1612,122.54,122.53,0.05300793]
[1742307178431,0.05653351,122.56,122.53,0.05300793]
[1742307179234,8.1612,122.54,122.53,0.05300793]
[1742307179434,21.57120248,122.55,122.53,0.05300793]
[1742307179736,8.1609,122.55,122.53,0.05300793]
[1742307180027,0.05653351,122.56,122.53,0.05300793]
[1742307180233,8.21683351,122.56,122.53,8.21450793]
[1742307180437,0.05653351,122.56,122.53,0.05300793]
[1742307180834,8.1612,122.54,122.53,0.05300793]
[1742307181926,29.73240248,122.54,122.53,0.05300793]
[1742307182133,55.31120248,122.54,122.48,269.3]
[1742307182334,21.57120248,122.52,122.48,269.3]
[1742307182533,8.164,122.5,122.48,269.3]
[1742307183340,0.05931893,122.5,122.48,269.35688317]
[1742307183638,0.05931893,122.5,122.48,0.05688317]
[1742307183829,8.1645,122.49,122.48,0.05688317]
[1742307184434,8.22351893,122.5,122.48,0.05688317]
[1742307184837,0.05931893,122.5,122.48,0.05688317]
[1742307185534,8.22351893,122.5,122.48,0.05688317]
[1742307186138,8.22351893,122.5,122.48,8.22188317]
[1742307186335,55.37052141,122.5,122.42,33.74]
[1742307186536,55.31120248,122.5,122.42,33.74]
[1742307186727,55.31120248,122.5,122.44,8.1676]
[1742307187137,55.31120248,122.5,122.43,41.9082]
[1742307187337,2.0933,122.49,122.43,33.74]
[1742307187636,8.22225211,122.48,122.45,0.05767237]
[1742307187838,0.05655211,122.48,122.45,0.05767237]
[1742307188036,21.62775459,122.48,122.45,0.05767237]
[1742307189138,8.1665,122.46,122.45,0.05767237]
[1742307189539,21.57120248,122.46,122.41,33.74]
[1742307190131,55.31120248,122.46,122.4,269.38]
[1742307190329,8.169,122.43,122.4,303.12]
[1742307190834,0.05799215,122.43,122.4,303.17918173]
[1742307191031,0.05799215,122.43,122.41,8.1694]
[1742307191239,0.05799215,122.43,122.4,303.17918173]
[1742307191540,0.05799215,122.43,122.41,21.57120248]
[1742307191739,4.2563,122.49,122.41,21.57120248]
[1742307191934,8.1659,122.47,122.43,21.57120248]
[1742307192133,8.1659,122.47,122.44,33.74]
[1742307192338,2.0933,122.49,122.44,33.74]
[1742307192534,8.1668,122.46,122.44,33.74]
[1742307192933,8.22253256,122.46,122.44,33.79725367]
[1742307193535,0.05573256,122.46,122.44,41.96495367]
[1742307194139,0.05573256,122.46,122.45,8.1672]
[1742307195533,37.9408,122.53,122.48,8.165]
[1742307195743,4.2008,122.53,122.48,8.165]
[1742307196241,4.2008,122.53,122.49,8.1644]
[1742307196642,4.2008,122.53,122.47,303.22]
[1742307196643,4.2008,122.53,122.48,8.1649]
[1742307196845,0.0517362,122.52,122.5,0.05724008]
[1742307197551,0.0517362,122.52,122.5,33.79724008]
[1742307197846,0.0517362,122.52,122.5,41.96064008]
[1742307198047,0.0517362,122.52,122.5,33.79724008]
[1742307198442,8.2147362,122.52,122.5,33.79724008]
[1742307199151,8.2147362,122.52,122.5,41.96104008]
[1742307199349,8.1632,122.51,122.5,33.79724008]
[1742307200849,0.0517362,122.52,122.5,33.79724008]
[1742307201346,0.0517362,122.52,122.5,0.05724008]
[1742307201545,8.1632,122.51,122.5,0.05724008]
[1742307208651,76.91414116,122.52,122.42,269.46]
[1742307208951,21.57120248,122.47,122.42,303.18]
[1742307209151,8.1679,122.44,122.42,303.18]
[1742307209553,8.1679,122.44,122.42,269.46]
[1742307209749,8.22222871,122.44,122.42,277.68948199]
[1742307210250,8.22222871,122.44,122.42,269.52038199]
[1742307210446,8.1685,122.43,122.42,269.52038199]
[1742307211256,8.22252871,122.44,122.42,269.52038199]
[1742307211450,0.05432871,122.44,122.42,269.52038199]
[1742307211845,8.1685,122.43,122.42,269.52038199]
[1742307212453,8.22242871,122.44,122.42,269.52038199]
[1742307212859,0.05432871,122.44,122.42,277.68928199]
[1742307213155,0.05432871,122.44,122.42,269.52038199]
[1742307213958,0.05432871,122.44,122.42,277.68928199]
[1742307214552,0.05432871,122.44,122.42,269.52038199]
[1742307215061,8.1685,122.43,122.42,269.52038199]
[1742307217152,8.22252871,122.44,122.42,269.52038199]
[1742307217655,0.05432871,122.44,122.42,269.52038199]
[1742307218557,8.22252871,122.44,122.42,269.52038199]
[1742307218851,0.05432871,122.44,122.42,269.52038199]
[1742307219653,0.05432871,122.44,122.43,8.1685]
[1742307219852,0.05432871,122.44,122.42,269.52038199]
[1742307220457,0.05432871,122.44,122.43,8.1685]
[1742307220959,0.05432871,122.44,122.42,277.68938199]
[1742307221559,0.05432871,122.44,122.43,8.1685]
[1742307230967,0.05432871,122.44,122.42,269.52038199]
[1742307231470,0.05432871,122.44,122.43,8.1685]
[1742307231873,0.05432871,122.44,122.42,269.52038199]
[1742307232565,8.1685,122.43,122.42,269.52038199]
[1742307233171,8.1685,122.43,122.42,0.06038199]
[1742307235772,8.1712,122.39,122.38,269.54]
[1742307236766,8.1708,122.4,122.38,269.54]
[1742307236963,8.23337433,122.4,122.38,269.54]
[1742307237166,0.06257433,122.4,122.38,269.54]
[1742307238569,55.33377681,122.4,122.37,0.05242203]
[1742307238768,21.57120248,122.38,122.37,0.05242203]
[1742307238975,21.57120248,122.38,122.34,269.56]
[1742307239175,8.1736,122.36,122.34,269.56]
[1742307239973,0.05943545,122.36,122.35,8.1739]
[1742307240276,0.05943545,122.36,122.34,269.58572207]
[1742307240678,8.1739,122.35,122.34,269.58572207]
[1742307240873,0.05943545,122.36,122.34,269.58572207]
[1742307241078,8.1739,122.35,122.34,269.58572207]
[1742307241471,0.05943545,122.36,122.34,269.58572207]
[1742307241775,8.1739,122.35,122.34,269.58572207]
[1742307244180,8.1739,122.35,122.34,0.02572207]
[1742307244376,29.74510248,122.35,122.34,0.02572207]
[1742307249079,0.05943545,122.36,122.34,0.02572207]
[1742307249580,8.1739,122.35,122.34,0.02572207]
[1742307255177,0.05943545,122.36,122.34,0.02572207]
[1742307255581,8.1739,122.35,122.34,0.02572207]
[1742307255789,29.74510248,122.35,122.34,0.02572207]
[1742307258985,8.1739,122.35,122.34,0.02572207]
[1742307259389,8.23273545,122.36,122.34,0.02572207]
[1742307259781,0.05943545,122.36,122.34,0.02572207]
[1742307260091,8.1739,122.35,122.34,0.02572207]
[1742307260886,55.27120248,122.35,122.27,33.7]
[1742307261287,8.1762,122.32,122.29,8.1776]
[1742307261677,8.1766,122.31,122.28,8.1783]
[1742307261879,21.57120248,122.31,122.27,33.68]
[1742307262283,8.1776,122.3,122.27,41.8589]
[1742307262687,21.57120248,122.31,122.27,33.68]
[1742307262887,8.1777,122.3,122.27,41.8589]
[1742307263089,21.57120248,122.31,122.27,33.68]
[1742307263490,8.1786,122.28,122.27,33.68]
[1742307263691,8.1786,122.28,122.26,4.122]
[1742307263894,8.1786,122.28,122.27,33.68]
[1742307264483,0.05768327,122.29,122.27,33.68]
[1742307265190,8.23578327,122.29,122.27,33.68]
[1742307265592,8.1786,122.28,122.27,33.68]
[1742307266187,8.23588327,122.29,122.27,33.68]
[1742307266893,8.23588327,122.29,122.27,41.8591]
[1742307267693,8.23588327,122.29,122.27,33.68]
[1742307268492,0.05768327,122.29,122.27,33.68]
[1742307268795,0.05768327,122.29,122.27,41.8587]
[1742307270391,0.05768327,122.29,122.28,8.1786]
[1742307270595,0.05768327,122.29,122.27,33.68]
[1742307270795,0.05768327,122.29,122.27,41.8588]
[1742307270997,0.05768327,122.29,122.27,33.68]
[1742307271598,0.05768327,122.29,122.28,8.1786]
[1742307271990,0.05768327,122.29,122.28,22.05093344]
[1742307272189,0.05768327,122.29,122.28,8.1786]
[1742307274593,0.05768327,122.29,122.28,33.68]
[1742307275296,0.05768327,122.29,122.28,41.8586]
[1742307280794,138.85298239,122.41,122.33,8.175]
[1742307281004,6.93616672,122.39,122.34,13.87233344]
[1742307281197,6.93616672,122.39,122.35,33.68]
[1742307281593,6.93616672,122.38,122.35,33.68]
[1742307281997,6.93616672,122.38,122.37,8.1721]
[1742307281998,0.05266855,122.38,122.37,8.1721]
[1742307283496,0.05266855,122.38,122.36,8.1728]
[1742307283702,13.92500199,122.38,122.35,33.73325785]
[1742307284001,0.05266855,122.38,122.35,33.73325785]
[1742307286703,21.69266037,122.38,122.35,0.05325785]
[1742307287590,8.1729,122.37,122.35,0.05325785]
[1742307288000,0.05266855,122.38,122.35,0.05325785]
[1742307288194,0.05266855,122.38,122.36,8.1729]
[1742307288894,8.22456855,122.38,122.36,8.1729]
[1742307289297,8.22456855,122.38,122.35,8.22675785]
[1742307289494,8.1726,122.37,122.35,8.22675785]
[1742307289697,8.1726,122.37,122.35,0.05325785]
[1742307289894,0.05266855,122.38,122.35,8.22675785]
[1742307290303,8.22496855,122.38,122.35,8.22675785]
[1742307291403,0.05266855,122.38,122.35,0.05325785]
[1742307291603,0.05266855,122.38,122.35,33.69325785]
[1742307292002,0.05266855,122.38,122.36,8.1729]
[1742307292306,0.05266855,122.38,122.35,33.69325785]
[1742307292901,0.05266855,122.38,122.35,0.05325785]
[1742307293101,8.22476855,122.38,122.35,8.22675785]
[1742307294102,8.1726,122.37,122.35,8.22675785]
[1742307294308,8.1726,122.37,122.35,0.05325785]
[1742307294503,8.22486855,122.38,122.35,0.05325785]
[1742307294901,8.22486855,122.38,122.35,8.22685785]
[1742307295407,8.22486855,122.38,122.35,0.05325785]
[1742307295806,0.05266855,122.38,122.35,0.05325785]
[1742307296206,0.05266855,122.38,122.36,8.1729]
[1742307296511,0.05266855,122.38,122.35,0.05325785]
[1742307297805,0.05266855,122.38,122.36,8.1732]
[1742307298110,0.05266855,122.38,122.35,0.05325785]
[1742307298411,0.05266855,122.38,122.36,8.1732]
[1742307298605,0.05266855,122.38,122.35,0.05325785]
[1742307299909,8.22456855,122.38,122.36,8.1728]
[1742307300412,0.05266855,122.38,122.36,8.1728]
[1742307302314,0.05266855,122.38,122.36,8.1732]
[1742307302615,0.05266855,122.38,122.35,0.05325785]
[1742307303909,8.1729,122.37,122.35,0.05325785]
[1742307304106,0.05266855,122.38,122.35,8.22665785]
[1742307304306,8.22496855,122.38,122.35,0.05325785]
[1742307304511,0.05266855,122.38,122.36,55.25999182]
[1742307304710,55.25999182,122.46,122.36,55.25999182]
[1742307304913,2.0016,122.45,122.38,21.63999182]
[1742307305111,13.84058464,122.44,122.39,317.18058464]
[1742307305511,13.84058464,122.43,122.39,317.18058464]
[1742307305717,13.84058464,122.44,122.39,317.18058464]
[1742307305918,0.05680149,122.42,122.4,0.05270789]
[1742307306112,8.22640149,122.42,122.4,0.05270789]
[1742307306311,0.05680149,122.42,122.41,13.84058464]
[1742307306817,0.05680149,122.42,122.4,13.89329253]
[1742307307022,0.05680149,122.42,122.4,8.22270789]
[1742307307217,8.22640149,122.42,122.4,0.05270789]
[1742307307407,0.05680149,122.42,122.4,0.05270789]
[1742307307812,63.39849818,122.41,122.4,0.05270789]
[1742307308011,57.40469818,122.41,122.35,269.72]
[1742307308219,8.1722,122.38,122.35,269.72]
[1742307308418,2.1542,122.4,122.37,8.1724]
[1742307308614,2.1542,122.4,122.36,33.6]
[1742307308815,4.3638,122.44,122.36,33.6]
[1742307309017,0.05332979,122.41,122.39,0.05764393]
[1742307309418,8.1709,122.4,122.39,0.05764393]
[1742307310919,21.68192797,122.41,122.36,33.6]
[1742307311819,8.1732,122.36,122.35,269.72]
[1742307312417,21.68797897,122.37,122.31,269.68]
[1742307312612,21.62859818,122.37,122.31,303.28]
[1742307312922,8.22902172,122.35,122.31,303.28]
[1742307313125,0.05462172,122.35,122.31,303.28]
[1742307313324,0.05462172,122.35,122.32,33.6]
[1742307313617,8.1752,122.33,122.32,33.6]
[1742307313824,0.05462172,122.35,122.31,269.68]
[1742307314026,8.1759,122.32,122.31,269.68]
[1742307314518,0.05462172,122.35,122.31,269.68]
[1742307315822,8.1758,122.33,122.31,269.68]
[1742307316025,2.26162172,122.35,122.31,269.68]
[1742307316222,8.1756,122.33,122.31,269.68]
[1742307316426,2.26162172,122.35,122.31,269.68]
[1742307317424,10.43582172,122.35,122.32,8.1754]
[1742307317719,0.05462172,122.35,122.31,269.68]
[1742307317924,0.05462172,122.35,122.34,8.1745]
[1742307318723,55.22859818,122.41,122.37,8.1723]
[1742307318922,55.22859818,122.41,122.36,33.6]
[1742307319622,8.1725,122.37,122.36,33.6]
[1742307320324,8.1732,122.36,122.35,0.05462172]
[1742307321429,8.1752,122.33,122.32,33.6]
[1742307321924,8.1744,122.35,122.32,33.6]
[1742307322526,8.1747,122.34,122.32,33.6]
[1742307323229,8.1747,122.34,122.32,41.7756]
[1742307323438,8.23406325,122.35,122.32,41.7756]